Cogmind - Beta 13 @@@ ROGUE MODE // 2024.03.22 @ 16:44:51 Player: ChromeKnight Result: Destroyed by UL-4BS(R) with Subdweller Laser Performance ------------- Evolutions (0) 0 Regions Visited (3) 600 Robots Destroyed (18) 90 Value Destroyed (322) 322 Prototype IDs (0) 0 Alien Tech Used (0) 0 Bonus (0) 0 TOTAL SCORE: 1012 Bonus ------- None Cogmind --------- Core Integrity 0/250 Matter 295/300 Energy 100/100 System Corruption 2% Temperature Cool (7) Movement Flying (40) Location -10/Subcaves Parts ------- > --- POWER (1) -------- (None) > --- PROPULSION (2) --- Flight Unit > --- UTILITY (2) ------ (None) > --- WEAPON (2) ------- (None) > --- INVENTORY (5) ---- Flight Unit Subdweller Optics Sensor Array Improved Terrain Scanner Peak State ------------ > --- POWER ------------ Light Ion Engine > --- PROPULSION ------- Light Treads Light Treads > --- UTILITY ---------- Medium Storage Unit Subdweller Optics > --- WEAPON ----------- Subdweller Laser Flamer > --- INVENTORY -------- Light Treads Flight Unit Flight Unit Flight Unit Flight Unit Disposable Heat Sink Disposable Heat Sink Sensor Array Improved Terrain Scanner Makeshift System Restoration Module [Rating: 11] Favorites ----------- Power Light Ion Engine Engine Light Ion Engine Propulsion Light Treads Treads Light Treads Flight Unit Flight Unit Utility Light Armor Plating Device Disposable Heat Sink Storage Medium Storage Unit Protection Light Armor Plating Weapon Light Assault Rifle Energy Gun Subdweller Laser Ballistic Gun Light Assault Rifle Special Weapon Flamer Build | -11 -10 -10 -10 ------- Run | Yrd Mat Min Sub Slots Evolved . | . . . . Power . | . . . . Propulsion . | . . . . Utility . | . . . . Weapon . | . . . . Parts Attached 22 | 6 8 . 8 Power 4 | 1 2 . 1 Engine 4 | 1 2 . 1 Core . | . . . . Reactor . | . . . . Propulsion 5 | 2 . . 3 Treads 4 | 2 . . 2 Leg . | . . . . Wheel . | . . . . Hover . | . . . . Flight 1 | . . . 1 Utility 6 | 1 3 . 2 Device 2 | . . . 2 Storage 2 | 1 1 . . Processor . | . . . . Hackware . | . . . . Protection 2 | . 2 . . Artifact . | . . . . Weapon 7 | 2 3 . 2 Energy Gun 1 | . . . 1 Energy Cannon . | . . . . Ballistic Gun 5 | 2 3 . . Ballistic Cannon . | . . . . Launcher . | . . . . Special Weapon 1 | . . . 1 Impact Weapon . | . . . . Slashing Weapon . | . . . . Piercing Weapon . | . . . . Special Melee Weapon . | . . . . Unidentified Prototypes . | . . . . Parts Lost 10 | . . . 10 Power 2 | . . . 2 Propulsion 3 | . . . 3 Utility 2 | . . . 2 Weapon 3 | . . . 3 Highest Loss Streak 6 | . . . 6 To Critical Strikes . | . . . . Average Slot Usage (%) 98 | . 99 100 96 Engine 13 | . 14 14 12 Treads 27 | . 28 28 27 Device 1 | . . . 3 Storage 14 | . 14 14 14 Protection 12 | . 13 14 10 Energy Gun 1 | . . . 3 Ballistic Gun 25 | . 28 28 21 Special Weapon 1 | . . . 3 Naked Turns . | . . . . Heaviest Build 20 | 10 18 18 20 Greatest Support 40 | 40 40 40 40 Greatest Overweight (x) . | . . . . Average Overweight (x) . | . . . . Largest Inventory Capacity 10 | 8 10 10 10 Average Capacity 9 | 6 8 10 9 Most Carried 10 | 1 10 10 10 Average Carried 8 | . 6 10 9 Final Capacity 10 | 8 10 10 5 Final Carried 10 | 1 10 10 4 Class Distribution -------------------- 59% | Scavenger-Mutant 40% | Mutant Dominant Class ---------------- Mutant | -10/Materials Scavenger-Mutant | -10/Mines Scavenger-Mutant | -10/Subcaves Resources | -11 -10 -10 -10 ----------- Run | Yrd Mat Min Sub Matter Collected 613 | 243 160 26 184 Remotely . | . . . . Salvage Created 423 | 27 202 . 194 Parts 41 | 5 24 . 12 Haulers Intercepted 1 | . 1 . . Recyclers Shooed 1 | . 1 . . Parts Field Recycled . | . . . . Retrieved Matter . | . . . . Parts Self-Destructed 18 | . . . 18 Prevented . | . . . . Kills | -11 -10 -10 -10 ------- Run | Yrd Mat Min Sub Combat Hostiles Destroyed 15 | . 9 1 5 Guns 14 | . 9 1 4 Cannons 1 | . . . 1 Classes Destroyed 7 | 1 3 . 3 Tunneler 1 | 1 . . . Hauler 1 | . 1 . . Watcher 1 | . 1 . . Swarmer 9 | . 9 . . Grunt 2 | . . . 2 Sentry 1 | . . . 1 Subdweller 2 | . . . 2 Best Kill Streak 4 | 1 4 1 2 Combat Bots Only 3 | . 3 1 2 Max Kills in Single Turn 2 | 1 2 1 1 Gunslinging . | . . . . Exploded . | . . . . Melee . | . . . . Uniques/NPCs Destroyed 1 | . . 1 . YI-UF0 (-10/Mines) Combat | -11 -10 -10 -10 -------- Run | Yrd Mat Min Sub Hostile Shots Fired 142 | . 56 . 86 Missed 38 | . 12 . 26 Damage Taken 1521 | . 345 . 1176 Core 266 | . 63 . 203 Absorbed by Shields . | . . . . Core Remaining (%) 100 | 100 . . . Volleys Fired 81 | 2 34 2 43 Largest 2 | 2 2 2 2 Hottest 160 | 40 40 40 160 Shots Fired 154 | 4 68 4 78 Gun 147 | 4 68 4 71 Cannon . | . . . . Launcher . | . . . . Special 7 | . . . 7 Kinetic 140 | 4 68 4 64 Thermal 14 | . . . 14 Explosive . | . . . . Electromagnetic . | . . . . Robot Hit Streak 19 | 3 6 1 19 Robot Miss Streak 4 | . 4 1 1 Penetration Max . | . . . . Secondary Targets 3 | . 2 . 1 Max Gunslinging Chain 1 | . 1 . 1 Shots Hit Robots 109 | 3 38 2 66 Core Hits 44 | 2 19 1 22 Critical Kills 1 | . . . 1 Critical Parts Destroyed . | . . . . Critical Strikes 3 | . . . 3 Burn 1 | . . . 1 Destroy 2 | . . . 2 Melee Attacks . | . . . . Impact . | . . . . Slashing . | . . . . Piercing . | . . . . Sneak Attacks . | . . . . Combat Hostiles . | . . . . Follow-up Attacks . | . . . . Damage Inflicted 977 | 22 321 16 618 Guns 891 | 22 321 16 532 Cannons . | . . . . Explosions . | . . . . Melee . | . . . . Ramming 8 | . . . 8 Kinetic 767 | 22 321 16 408 Thermal 202 | . . . 202 Explosive . | . . . . Electromagnetic . | . . . . Impact . | . . . . Slashing . | . . . . Piercing . | . . . . Highest Corruption 2 | . 2 2 2 Average Corruption 2 | . 2 2 2 Corruption Purged . | . . . . Corruption Blocked . | . . . . Effects 24 | . 2 10 12 Message Errors 3 | . . . 3 Matter Fused 9 | . . 5 4 Heat Flow Errors 1 | . 1 . . Energy Discharges 3 | . 1 1 1 Data Loss (minor) 4 | . . 2 2 Data Loss (major) 1 | . . 1 . Misfires 1 | . . . 1 Alerts 1 | . . 1 . Weapon Failures 1 | . . . 1 Overload Shots . | . . . . Overflow Damage . | . . . . Projectiles . | . . . . Explosions . | . . . . Melee . | . . . . Knockbacks . | . . . . Impact . | . . . . Kinetic . | . . . . Secondary . | . . . . Self-Inflicted Damage . | . . . . Shots . | . . . . Rammed 6 | . . . 6 Targets Rammed 6 | . . . 6 Kicked . | . . . . Crushed . | . . . . Highest Temperature 141 | . 141 6 9 Average Temperature 13 | . 14 4 3 Received Heat Transfer 288 | . . . 288 Siege Activations . | . . . . Robots Corrupted . | . . . . Combat Hostiles . | . . . . Parts Fried . | . . . . Impact Corruptions . | . . . . Robots Melted . | . . . . Combat Hostiles . | . . . . Parts Melted 1 | . . . 1 Heat Transferred 870 | . . . 870 Parts Sabotaged . | . . . . Parts Stolen . | . . . . Parts Stripped . | . . . . Power Chain Reactions . | . . . . Alert | -11 -10 -10 -10 ------- Run | Yrd Mat Min Sub Peak Influence 259 | 5 259 49 . Initial 49 | . 3 49 . Average 79 | . 141 36 . Maximum Alert Level 1 | . 1 . . Low Security (%) 84 | 100 65 100 . Level 1 15 | . 34 . . Level 2 . | . . . . Level 3 . | . . . . Level 4 . | . . . . Level 5 . | . . . . High Security . | . . . . Max Security . | . . . . Squads Dispatched . | . . . . Investigation . | . . . . Extermination . | . . . . Reinforcement . | . . . . Assault . | . . . . Garrison . | . . . . Intercept . | . . . . Searches Triggered . | . . . . Construction Impeded . | . . . . Haulers Reinforced . | . . . . Active Scanning Responses . | . . . . Cargo Convoy Interrupts . | . . . . Stealth | -11 -10 -10 -10 --------- Run | Yrd Mat Min Sub Distress Signals 3 | . 3 . . Communications Jammed . | . . . . Distress Signals . | . . . . Times Spotted 27 | . 16 1 10 Peak Tracking Total 5 | . 5 1 3 Tactical Retreats 1 | . 1 . . Traps | -11 -10 -10 -10 ------- Run | Yrd Mat Min Sub Traps Triggered 2 | . 1 . 1 Indirectly . | . . . . Trap Hack Attempts . | . . . . Triggered . | . . . . Disarmed . | . . . . Reprogrammed . | . . . . Reused . | . . . . Traps Extracted . | . . . . Installed . | . . . . Triggered . | . . . . Machines | -11 -10 -10 -10 ---------- Run | Yrd Mat Min Sub Machines Disabled . | . . . . Max in Single Turn . | . . . . Machines Repaired . | . . . . Machines Dismantled . | . . . . Machines Sabotaged . | . . . . Overloaded Fab Kills . | . . . . Hacking | -11 -10 -10 -10 --------- Run | Yrd Mat Min Sub Machines Accessed 3 | . 3 . . Terminals 3 | . 3 . . Fabricators . | . . . . Repair Stations . | . . . . Recycling Units . | . . . . Scanalyzers . | . . . . Garrison Access . | . . . . Total Hacks 12 | . 12 . . Successful 6 | . 6 . . Failed 5 | . 5 . . Catastrophic 1 | . 1 . . Database Lockouts 1 | . 1 . . Manual 11 | . 11 . . Terminals 12 | . 12 . . Fabricators . | . . . . Repair Stations . | . . . . Recycling Units . | . . . . Scanalyzers . | . . . . Garrison Access . | . . . . Terminal Hacks 4 | . 4 . . Robot Analysis 2 | . 2 . . Level Access Points 1 | . 1 . . Zone Layout 1 | . 1 . . Fabricator Hacks . | . . . . Repair Station Hacks . | . . . . Recycling Unit Hacks . | . . . . Scanalyzer . | . . . . Garrison Access Hacks . | . . . . Unauthorized Hacks 2 | . 2 . . Terminals 2 | . 2 . . Botnet 1 | . 1 . . Operators 1 | . 1 . . Fabricators . | . . . . Repair Stations . | . . . . Recycling Units . | . . . . Scanalyzers . | . . . . Garrison Access . | . . . . Data Cores Recovered . | . . . . Used . | . . . . Hacking Detections 3 | . 3 . . Full Trace Events . | . . . . Feedback Events . | . . . . Feedback Blocked . | . . . . Robot Schematics Acquired . | . . . . Robots Built . | . . . . Authchips . | . . . . Time . | . . . . Total Robot Build Rating . | . . . . Part Schematics Acquired . | . . . . Parts Built . | . . . . Authchips . | . . . . Time . | . . . . Total Part Build Rating . | . . . . Parts Repaired . | . . . . Time . | . . . . Parts Recycled . | . . . . Recycled Matter . | . . . . Retrieved Matter . | . . . . Retrieved Components . | . . . . Parts Scanalyzed . | . . . . Part Schematics Acquired . | . . . . Parts Damaged . | . . . . Bothacking | -11 -10 -10 -10 ------------ Run | Yrd Mat Min Sub Used RIF Installer . | . . . . Robots Hacked . | . . . . Non-combat . | . . . . Combat . | . . . . Robot Hacks Applied . | . . . . Relay Couplers Released . | . . . . Fabnet Peak Effective % . | . . . . Robots Rewired . | . . . . Allies Hacked . | . . . . Hacks Repelled . | . . . . Allies | -11 -10 -10 -10 -------- Run | Yrd Mat Min Sub Total Allies . | . . . . Largest Group . | . . . . Highest-Rated Group . | . . . . Highest-Rated Ally . | . . . . Total Orders . | . . . . Ally Attacks . | . . . . Total Damage . | . . . . Kills . | . . . . Allies Corrupted . | . . . . Allies Melted . | . . . . Intel | -11 -10 -10 -10 ------- Run | Yrd Mat Min Sub Robot Analysis Total 2 | . 2 . . Derelict Logs Recovered 1 | . . 1 . Drone Launches . | . . . . Drone Recoveries . | . . . . Exploration | -11 -10 -10 -10 ------------- Run | Yrd Mat Min Sub Turns Passed 1868 | 86 497 543 742 Spaces Moved 860 | 48 231 336 245 Core 4 | 4 . . . Treads 848 | 44 231 336 237 Legs . | . . . . Wheels . | . . . . Hover . | . . . . Flight 8 | . . . 8 Fastest Speed 40 | 50 160 160 40 Average Speed 158 | 150 160 160 156 Slowest Speed 160 | 160 160 160 160 Overloaded Moves . | . . . . Propulsion Burnouts . | . . . . Robots Hopped . | . . . . Cave-ins Triggered . | . . . . Exploration Rate (%) 35 | 4 39 75 22 Regions Visited 3 Branch Regions 2 Pre-discovered Areas . | . . . . Known Exits Taken . | . . . . Unknown Exits Taken 3 | 1 1 1 . Scrap Searched 2 | . . 1 1 Spaces Dug . | . . . . Terrain Destroyed . | . . . . Melee . | . . . . Projectile . | . . . . AOE . | . . . . Terrain Rammed . | . . . . Walls Destroyed . | . . . . Machines Disabled . | . . . . Actions | -11 -10 -10 -10 --------- Run | Yrd Mat Min Sub Total 1230 | 56 311 338 525 Wait 234 | . 16 1 217 Move 857 | 47 230 335 245 Hop . | . . . . Pick Up 18 | 1 13 . 4 Fast Attach 9 | 6 1 . 2 Attach 5 | . . . 5 Detach . | . . . . Swap 8 | . 7 . 1 Drop 12 | . 10 . 2 Fire 81 | 2 34 2 43 Melee . | . . . . Ram . | . . . . Kick . | . . . . Crush 6 | . . . 6 Escape Stasis . | . . . . Rewire . | . . . . Trap . | . . . . Miscellaneous . | . . . . Route ------- -11/Scrapyard -10/Materials (discovered 5 exits: Mat x3 / [*Min x2]) -10/Mines (discovered 2 exits: *Mat / [*Sub]) -10/Subcaves History --------- Turn | Location | Event 8 | -11/Scrapyard | Discovered new exit (range 16) 87 | -11/Scrapyard | Entered Materials 190 | -10/Materials | Discovered new exit (range 5) 209 | -10/Materials | Discovered new exit (range 12) 209 | -10/Materials | Central database locked down 318 | -10/Materials | Build established: Mutant 475 | -10/Materials | Identified exit to Materials 539 | -10/Materials | Discovered new exit (range 15) 584 | -10/Materials | Entered Mines 592 | -10/Mines | Met a Derelict bent on vengeance 802 | -10/Mines | Learned Materials stockpile data 815 | -10/Mines | Build established: Scavenger-Mutant 869 | -10/Mines | Discovered new exit (range 9) 973 | -10/Mines | Discovered exit to Materials (range 9) 993 | -10/Mines | Destroyed YI-UF0 1127 | -10/Mines | Entered Subcaves 1702 | -10/Subcaves | Lost 3 parts (1n1u1w) 1734 | -10/Subcaves | A swath of the cavern ceiling suddenly collapsed 1825 | -10/Subcaves | Core integrity fell below 50% 1861 | -10/Subcaves | Core integrity fell below 20% 1865 | -10/Subcaves | Released all parts (2) 1869 | -10/Subcaves | Destroyed by UL-4BS(R) with Subdweller Laser Last Messages --------------- 01812_ ##TE4NGCHBAAIDBPUUO33FVI 01828_ UL-4BS(R) heat damages Disposable Heat Sink. 01828_ Lgt. Treads destroyed. 01830_ Flamer destroyed. 01848_ Sub. Laser shoots sparks and powers down. 01853_ Slammed into UL-4BS(R). 01854_ Lgt. Treads destroyed. 01855_ Slammed into R5-PBM(R). 01855_ Triggered Piercing Trap. 01855_ Spikes shoot up from the floor. 01855_ Critical hit (Impale). 01859_ Slammed into R5-PBM(R). 01862_ Broken Sub. Laser destroyed. 01863_ Slammed into R5-PBM(R). 01864_ Disposable Heat Sink destroyed. 01865_ #FX QE3,6PQL=R